fUSD/lending_fUSD_20241207
["ID","MTS","AMOUNT","RATE_DAILY","PERIOD"]
[344536933,1733537483595,-500.0,0.00012051,2]
[344536934,1733537483604,-1575.02,0.00012051,2]
[344536935,1733537483614,-974.48,0.00012051,2]
[344536936,1733537483623,-502.4219481,0.00012051,2]
[344536937,1733537483632,-500.0,0.00012051,2]
[344536938,1733537483643,-594.53,0.00012051,2]
[344536939,1733537483652,-500.0,0.00012051,2]
[344536940,1733537483662,-500.0,0.00012051,2]
[344536941,1733537483671,-500.0,0.00012051,2]
[344536942,1733537483681,-500.0,0.00012051,2]
[344536943,1733537483690,-500.0,0.00012051,2]
[344536944,1733537483700,-500.0,0.00012051,2]
[344536945,1733537483709,-500.0,0.00012051,2]
[344536946,1733537483719,-500.0,0.00012051,2]
[344536947,1733537483728,-500.0,0.00012051,2]
[344536948,1733537483737,-500.0,0.00012051,2]
[344536949,1733537483747,-500.0,0.00012051,2]
[344536950,1733537483756,-648.49,0.00012051,2]
[344536951,1733537483765,-500.0,0.00012051,2]
[344536952,1733537483775,-500.0,0.00012051,2]
[344536953,1733537483784,-500.0,0.00012051,2]
[344536954,1733537483793,-500.0,0.00012051,2]
[344536955,1733537483803,-157.56951593,0.00012051,2]
[344536956,1733537483813,-672.69,0.00012051,2]
[344536957,1733537483822,-500.0,0.00012051,2]
[344536958,1733537483832,-523.55,0.00012051,2]
[344536959,1733537483841,-500.0,0.00012051,2]
[344536960,1733537483851,-734.69,0.00012051,2]
[344536961,1733537483860,-500.0,0.00012051,2]
[344536962,1733537483870,-500.0,0.00012051,2]
[344536963,1733537483880,-500.0,0.00012051,2]
[344536964,1733537483889,-574.62,0.00012051,2]
[344536965,1733537483902,-507.11,0.00012051,2]
[344536966,1733537483911,-561.87,0.00012051,2]
[344536967,1733537483921,-630.75,0.00012051,2]
[344536968,1733537483931,-500.0,0.00012051,2]
[344536969,1733537483940,-958.27,0.00012051,2]
[344536970,1733537483950,-500.0,0.00012051,2]
[344536971,1733537483960,-1099.36,0.00012051,2]
[344536972,1733537483970,-500.0,0.00012051,2]
[344536973,1733537483979,-500.0,0.00012051,2]
[344536974,1733537483988,-1285.82,0.00012051,2]
[344536975,1733537483998,-1464.66,0.00012051,2]
[344536976,1733537484007,-500.0,0.00012051,2]
[344536977,1733537484017,-500.0,0.00012051,2]
[344536978,1733537484027,-500.0,0.00012051,2]
[344536979,1733537484036,-500.0,0.00012051,2]
[344536980,1733537484048,-501.40085225,0.00012051,2]
[344536981,1733537484058,-1119.59,0.00012051,2]
[344536982,1733537484068,-500.0,0.00012051,2]
[344536983,1733537484078,-794.33,0.00012051,2]
[344536984,1733537484088,-500.0,0.00012051,2]
[344536985,1733537484097,-500.0,0.00012051,2]
[344536986,1733537484106,-569.48,0.00012051,2]
[344536987,1733537484116,-563.20875349,0.00012051,2]
[344536988,1733537484126,-500.0,0.00012051,2]
[344536989,1733537484135,-500.0,0.00012051,2]
[344536990,1733537484147,-391.00365562,0.00012051,2]
[344536991,1733537484157,-500.0,0.00012051,2]
[344536992,1733537484166,-940.67,0.00012051,2]
[344536993,1733537484176,-584.26,0.00012051,2]
[344536994,1733537484185,-1198.88,0.00012051,2]
[344536995,1733537484194,-607.45,0.00012051,2]
[344536996,1733537484204,-500.0,0.00012051,2]
[344536997,1733537484214,-500.0,0.00012051,2]
[344536998,1733537484223,-500.0,0.00012051,2]
[344536999,1733537484232,-983.98,0.00012051,2]
[344537000,1733537484245,-500.0,0.00012051,2]
[344537001,1733537484255,-679.16,0.00012051,2]
[344537002,1733537484264,-1075.79,0.00012051,2]
[344537003,1733537484273,-500.0,0.00012051,2]
[344537004,1733537484282,-733.78,0.00012051,2]
[344537005,1733537484291,-592.95,0.00012051,2]
[344537006,1733537484300,-500.0,0.00012051,2]
[344537007,1733537484310,-1043.19,0.00012051,2]
[344537008,1733537484319,-588.58,0.00012051,2]
[344537009,1733537484328,-581.87,0.00012051,2]
[344537010,1733537484338,-500.0,0.00012051,2]
[344537011,1733537484350,-835.12,0.00012051,2]
[344537012,1733537484359,-530.69,0.00012051,2]
[344537013,1733537484368,-544.29,0.00012051,2]
[344537014,1733537484378,-498.42529094,0.00012052,2]
[344537015,1733537484387,-500.0,0.00012052,2]
[344537016,1733537484396,-500.8700702,0.00012052,2]
[344537017,1733537484405,-374.89870435,0.00012052,2]
[344537018,1733537484414,-416.29299718,0.00012052,2]
[344537019,1733537484425,-500.0,0.00012052,2]
[344537020,1733537484434,-500.0,0.00012052,2]
[344537021,1733537484443,-500.0,0.00012052,2]
[344537022,1733537484453,-500.0,0.00012052,2]
[344537023,1733537484463,-563.14162716,0.00012052,2]
[344537024,1733537484473,-500.0,0.00012052,2]
[344537025,1733537484484,-500.0,0.00012052,2]
[344537026,1733537484493,-500.0,0.00012052,2]
[344537027,1733537484502,-500.0,0.00012052,2]
[344537028,1733537484512,-500.0,0.00012052,2]
[344537029,1733537484521,-500.0,0.00012052,2]
[344537030,1733537484530,-500.0,0.00012052,2]
[344537031,1733537484539,-500.0,0.00012052,2]
[344537032,1733537484549,-500.0,0.00012052,2]
[344537033,1733537484558,-500.0,0.00012052,2]
[344537034,1733537484567,-150.0,0.00012055,2]
[344537035,1733537484576,-150.0,0.00012055,2]
[344537036,1733537484585,-150.0,0.00012055,2]
[344537037,1733537484594,-150.0,0.00012055,2]
[344537038,1733537484604,-433.0,0.00012141,2]
[344537039,1733537484614,-500.0,0.00012187,2]
[344537040,1733537484623,-10044.64165581,0.00012229,2]
[344537041,1733537484632,-21112.3565142,0.00012229,2]
[344537042,1733537484642,-214.52413707,0.00012241,2]
[344537043,1733537484653,-164.96,0.0001228,2]
[344537044,1733537484662,-1262.0,0.00012286,2]
[344537045,1733537484671,-1000.0,0.00012298,3]
[344537046,1733537484681,-1050.3,0.00012323,2]
[344537047,1733537484690,-500.0,0.00012323,2]
[344537048,1733537484699,-1597.53,0.00012323,2]
[344537049,1733537484708,-1400.57,0.00012323,2]
[344537050,1733537484718,-365.302161,0.00012323,2]
[344537051,1733537484727,-548.55,0.00012323,2]
[344537052,1733537484736,-1766.81,0.00012323,2]
[344537053,1733537484746,-6143.12,0.00012323,2]
[344537054,1733537484756,-1488.72,0.00012323,2]
[344537055,1733537484765,-832.22,0.00012323,2]
[344537056,1733537484775,-525.94,0.00012323,2]
[344537057,1733537484785,-881.78,0.00012323,2]
[344537058,1733537484794,-1317.97,0.00012323,2]
[344537059,1733537484803,-500.0,0.00012323,2]
[344537060,1733537484813,-1288.04,0.00012323,2]
[344537061,1733537484823,-500.0,0.00012323,2]
[344537062,1733537484832,-545.05,0.00012323,2]
[344537063,1733537484842,-1581.01,0.00012323,2]
[344537064,1733537484852,-1641.76,0.00012323,2]
[344537065,1733537484862,-721.09,0.00012323,2]
[344537066,1733537484871,-835.39,0.00012323,2]
[344537067,1733537484881,-2710.58,0.00012323,2]
[344537068,1733537484890,-500.0,0.00012323,2]
[344537069,1733537484900,-1386.68,0.00012323,2]
[344537070,1733537484909,-8757.87,0.00012323,2]
[344537071,1733537484919,-500.0,0.00012323,2]
[344537072,1733537484928,-3403.53,0.00012323,2]
[344537073,1733537484938,-2678.48,0.00012323,2]
[344537074,1733537484946,-936.22,0.00012323,2]
[344537075,1733537484956,-876.67,0.00012323,2]
[344537076,1733537484965,-500.0,0.00012323,2]
[344537077,1733537484975,-4610.02,0.00012323,2]
[344537078,1733537484985,-500.0,0.00012323,2]
[344537079,1733537484994,-1590.58,0.00012323,2]
[344537080,1733537485004,-571.55,0.00012323,2]
[344537081,1733537485013,-1388.66,0.00012323,2]
[344537082,1733537485022,-500.0,0.00012323,2]
[344537083,1733537485034,-811.95,0.00012323,2]
[344537084,1733537485043,-9896.25,0.00012323,2]
[344537085,1733537485052,-500.0,0.00012323,2]
[344537086,1733537485063,-1248.83,0.00012323,2]
[344537087,1733537485073,-500.0,0.00012323,2]
[344537088,1733537485083,-945.51,0.00012323,2]
[344537089,1733537485092,-303.68509582,0.00012323,2]
[344537090,1733537485101,-8439.08,0.00012323,2]
[344537091,1733537485111,-500.0,0.00012323,2]
[344537092,1733537485121,-2764.02,0.00012323,2]
[344537093,1733537485131,-1408.69,0.00012323,2]
[344537094,1733537485140,-1121.13,0.00012323,2]
[344537095,1733537485152,-1072.4,0.00012323,2]
[344537096,1733537485161,-13870.93898179,0.00012324,2]
[344537097,1733537485171,-500.0,0.00012324,2]
[344537098,1733537485180,-1140.1,0.00012324,2]
[344537099,1733537485189,-1462.62,0.00012324,2]
[344537100,1733537485198,-2115.81,0.00012324,2]
[344537101,1733537485207,-1415.45,0.00012324,2]
[344537102,1733537485217,-500.0,0.00012324,2]
[344537103,1733537485226,-500.0,0.00012324,2]
[344537104,1733537485235,-500.0,0.00012324,2]
[344537105,1733537485247,-609.04,0.00012324,2]
[344537106,1733537485256,-819.45,0.00012324,2]
[344537107,1733537485266,-1046.78,0.00012324,2]
[344537108,1733537485276,-950.43,0.00012324,2]
[344537109,1733537485286,-500.0,0.00012324,2]
[344537110,1733537485295,-500.0,0.00012324,2]
[344537111,1733537485304,-804.93,0.00012324,2]
[344537112,1733537485314,-500.0,0.00012324,2]
[344537113,1733537485323,-500.0,0.00012324,2]
[344537114,1733537485333,-1117.46,0.00012324,2]
[344537115,1733537485342,-721.67,0.00012324,2]
[344537116,1733537485352,-563.82,0.00012324,2]
[344537117,1733537485363,-890.81,0.00012324,2]
[344537118,1733537485372,-500.0,0.00012324,2]
[344537119,1733537485381,-500.0,0.00012324,2]
[344537120,1733537485392,-500.0,0.00012324,2]
[344537121,1733537485406,-773.09,0.00012324,2]
[344537122,1733537485415,-611.78,0.00012324,2]
[344537123,1733537485425,-708.34,0.00012324,2]
[344537124,1733537485434,-1172.09,0.00012324,2]
[344537125,1733537485443,-1122.04,0.00012324,2]
[344537126,1733537485453,-536.64,0.00012324,2]
[344537127,1733537485463,-1195.36,0.00012324,2]
[344537128,1733537485473,-1204.41,0.00012324,2]
[344537129,1733537485482,-500.0,0.00012324,2]
[344537130,1733537485492,-1277.16,0.00012324,2]
[344537131,1733537485500,-723.36,0.00012324,2]
[344537132,1733537485509,-1141.67,0.00012324,2]
[344537133,1733537485518,-500.0,0.00012324,2]
[344537134,1733537485527,-626.89,0.00012324,2]
[344537135,1733537485538,-561.29,0.00012324,2]
[344537136,1733537485547,-952.18,0.00012324,2]
[344537137,1733537485556,-940.5,0.00012324,2]
[344537138,1733537485565,-867.31,0.00012324,2]
[344537139,1733537485574,-222.61616761,0.00012324,2]
[344537140,1733537485583,-841.91,0.00012324,2]
[344537141,1733537485592,-500.0,0.00012324,2]
[344537142,1733537485601,-500.0,0.00012324,2]
[344537143,1733537485611,-598.02,0.00012324,2]
[344537144,1733537485620,-500.0,0.00012324,2]
[344537145,1733537485629,-500.0,0.00012324,2]
[344537146,1733537485639,-519.16,0.00012324,2]
[344537147,1733537485651,-1077.49,0.00012324,2]
[344537148,1733537485660,-176.99175728,0.00012324,2]
[344537149,1733537485669,-503.35,0.00012324,2]
[344537150,1733537485679,-500.0,0.00012324,2]
[344537151,1733537485688,-500.0,0.00012324,2]
[344537152,1733537485697,-963.09,0.00012324,2]
[344537153,1733537485707,-1121.84,0.00012324,2]
[344537154,1733537485717,-500.0,0.00012324,2]
[344537155,1733537485727,-625.34,0.00012324,2]
[344537156,1733537485737,-705.73,0.00012324,2]
[344537157,1733537485747,-500.0,0.00012324,2]
[344537158,1733537485756,-576.6,0.00012324,2]
[344537159,1733537485766,-500.0,0.00012324,2]
[344537160,1733537485776,-500.0,0.00012324,2]
[344537161,1733537485787,-500.0,0.00012324,2]
[344537162,1733537485797,-500.0,0.00012324,2]
[344537163,1733537485809,-500.0,0.00012324,2]
[344537164,1733537485819,-460.18458229,0.00012324,2]
[344537165,1733537485829,-515.19,0.00012324,2]
[344537166,1733537485840,-660.5,0.00012324,2]
[344537167,1733537485850,-500.0,0.00012324,2]
[344537168,1733537485860,-500.0,0.00012324,2]
[344537169,1733537485870,-500.0,0.00012324,2]
[344537170,1733537485881,-892.96,0.00012324,2]
[344537171,1733537485891,-567.63,0.00012324,2]
[344537172,1733537485903,-1345.19,0.00012324,2]
[344537173,1733537485912,-712.16,0.00012324,2]
[344537174,1733537485923,-500.0,0.00012324,2]
[344537175,1733537485933,-500.0,0.00012324,2]
[344537176,1733537485942,-870.39,0.00012324,2]
[344537177,1733537485951,-179.98680213,0.00012324,2]
[344537178,1733537485961,-500.0,0.00012324,2]
[344537179,1733537485970,-820.34,0.00012324,2]
[344537180,1733537485980,-588.07,0.00012324,2]
[344537181,1733537485989,-601.34046606,0.00012324,2]
[344537182,1733537485999,-500.0,0.00012324,2]
[344537183,1733537486009,-820.76,0.00012324,2]
[344537184,1733537486019,-854.13,0.00012324,2]
[344537185,1733537486029,-550.88,0.00012324,2]
[344537186,1733537486038,-500.0,0.00012324,2]
[344537187,1733537486049,-422.09881243,0.00012324,2]
[344537188,1733537486058,-500.0,0.00012324,2]
[344537189,1733537486068,-1181.78,0.00012324,2]
[344537190,1733537486077,-778.07,0.00012324,2]
[344537191,1733537486087,-500.0,0.00012324,2]
[344537192,1733537486096,-582.48,0.00012324,2]
[344537193,1733537486105,-2295.52,0.00012324,2]
[344537194,1733537486115,-829.82,0.00012324,2]
[344537195,1733537486318,-794.15,0.00012324,2]
[344537196,1733537486342,-500.0,0.00012324,2]
[344537197,1733537486354,-799.05,0.00012324,2]
[344537198,1733537486364,-500.0,0.00012324,2]
[344537199,1733537486373,-724.21,0.00012324,2]
[344537200,1733537486383,-500.0,0.00012324,2]
[344537201,1733537486396,-664.86,0.00012324,2]
[344537202,1733537486406,-989.21,0.00012324,2]
[344537203,1733537486415,-849.12,0.00012324,2]
[344537204,1733537486426,-500.0,0.00012324,2]
[344537205,1733537486436,-500.0,0.00012324,2]
[344537206,1733537486446,-500.0,0.00012324,2]
[344537207,1733537486455,-509.57,0.00012324,2]
[344537208,1733537486464,-713.01,0.00012324,2]
[344537209,1733537486475,-500.47700011,0.00012324,2]
[344537210,1733537486485,-679.55,0.00012324,2]
[344537211,1733537486494,-560.76,0.00012324,2]
[344537212,1733537486504,-373.97535357,0.00012324,2]
[344537213,1733537486514,-1346.56,0.00012324,2]
[344537214,1733537486524,-989.19,0.00012324,2]
[344537215,1733537486533,-1211.19,0.00012324,2]
[344537216,1733537486543,-1833.64,0.00012324,2]
[344537217,1733537486552,-500.0,0.00012324,2]
[344537218,1733537486563,-500.0,0.00012324,2]
[344537219,1733537486572,-589.26,0.00012324,2]
[344537220,1733537486582,-500.0,0.00012324,2]
[344537221,1733537486592,-500.0,0.00012324,2]
[344537222,1733537486601,-921.57,0.00012324,2]
[344537223,1733537486610,-1281.93,0.00012324,2]
[344537224,1733537486620,-736.24,0.00012324,2]
[344537225,1733537486629,-500.0,0.00012324,2]
[344537226,1733537486639,-500.0,0.00012324,2]
[344537227,1733537486650,-529.97,0.00012324,2]
[344537228,1733537486660,-500.0,0.00012324,2]
[344537229,1733537486669,-780.19,0.00012324,2]
[344537230,1733537486679,-655.95,0.00012324,2]
[344537231,1733537486689,-911.08,0.00012324,2]
[344537232,1733537486698,-530.43,0.00012324,2]
[344537233,1733537486708,-873.22,0.00012324,2]
[344537234,1733537486718,-1140.22,0.00012324,2]
[344537235,1733537486728,-627.08,0.00012324,2]
[344537236,1733537486738,-643.92,0.00012324,2]
[344537237,1733537486747,-2433.75,0.00012324,2]
[344537238,1733537486757,-1430.18,0.00012324,2]
[344537239,1733537486767,-500.0,0.00012324,2]
[344537240,1733537486776,-782.99,0.00012324,2]
[344537241,1733537486786,-2284.01,0.00012324,2]
[344537242,1733537486795,-780.92,0.00012324,2]
[344537243,1733537486804,-500.0,0.00012324,2]
[344537244,1733537486813,-693.87,0.00012324,2]
[344537245,1733537486823,-509.76,0.00012324,2]
[344537246,1733537486834,-831.52,0.00012324,2]
[344537247,1733537486843,-500.0,0.00012324,2]
[344537248,1733537486853,-714.59,0.00012324,2]
[344537249,1733537486864,-1380.02,0.00012324,2]
[344537250,1733537486873,-823.48,0.00012324,2]
[344537251,1733537486883,-893.2,0.00012324,2]
[344537252,1733537486894,-814.35,0.00012324,2]
[344537253,1733537486903,-1734.35,0.00012324,2]
[344537254,1733537486914,-500.0,0.00012324,2]
[344537255,1733537486924,-3768.03,0.00012324,2]
[344537256,1733537486934,-582.08,0.00012324,2]
[344537257,1733537486944,-830.35,0.00012324,2]
[344537258,1733537486954,-975.77,0.00012324,2]
[344537259,1733537486964,-500.0,0.00012324,2]
[344537260,1733537486974,-7359.0,0.00012324,2]
[344537261,1733537486984,-3459.63,0.00012324,2]
[344537262,1733537486994,-500.0,0.00012324,2]
[344537263,1733537487004,-769.9,0.00012324,2]
[344537264,1733537487014,-500.0,0.00012324,2]
[344537265,1733537487024,-500.0,0.00012324,2]
[344537266,1733537487034,-1346.14,0.00012324,2]
[344537267,1733537487043,-964.1,0.00012324,2]
[344537268,1733537487053,-1060.98,0.00012324,2]
[344537269,1733537487063,-2194.59,0.00012324,2]
[344537270,1733537487073,-1828.43,0.00012324,2]
[344537271,1733537487083,-1200.0,0.00012324,2]
[344537272,1733537487092,-500.0,0.00012324,2]
[344537273,1733537487102,-500.0,0.00012324,2]
[344537274,1733537487112,-500.0,0.00012324,2]
[344537275,1733537487122,-535.97,0.00012324,2]
[344537276,1733537487132,-500.0,0.00012324,2]
[344537277,1733537487142,-564.88,0.00012324,2]
[344537278,1733537487154,-848.28,0.00012324,2]
[344537279,1733537487164,-2147.92,0.00012324,2]
[344537280,1733537487174,-10224.43,0.00012324,2]
[344537281,1733537487184,-2112.65,0.00012324,2]
[344537282,1733537487194,-967.65,0.00012324,2]
[344537283,1733537487205,-500.0,0.00012324,2]
[344537284,1733537487215,-2046.48,0.00012324,2]
[344537285,1733537487225,-674.48,0.00012324,2]
[344537286,1733537487234,-1371.16,0.00012324,2]
[344537287,1733537487247,-1082.33,0.00012324,2]
[344537288,1733537487256,-502.28762657,0.00012324,2]
[344537289,1733537487266,-837.66,0.00012324,2]
[344537290,1733537487276,-9124.76,0.00012324,2]
[344537291,1733537487286,-500.0,0.00012324,2]
[344537292,1733537487296,-567.79,0.00012324,2]
[344537293,1733537487306,-679.51,0.00012324,2]
[344537294,1733537487316,-500.0,0.00012324,2]
[344537295,1733537487326,-1047.21,0.00012324,2]
[344537296,1733537487336,-500.0,0.00012324,2]
[344537297,1733537487346,-621.96,0.00012324,2]
[344537298,1733537487358,-620.65,0.00012324,2]
[344537299,1733537487368,-500.0,0.00012324,2]
[344537300,1733537487377,-500.0,0.00012324,2]
[344537301,1733537487387,-1080.14,0.00012324,2]
[344537302,1733537487400,-500.0,0.00012324,2]
[344537303,1733537487410,-628.02,0.00012324,2]
[344537304,1733537487420,-500.0,0.00012324,2]
[344537305,1733537487431,-1351.25,0.00012324,2]
[344537306,1733537487442,-303.19677804,0.00012324,2]
[344537307,1733537487451,-1754.98,0.00012324,2]
[344537308,1733537487462,-5506.2,0.00012324,2]
[344537309,1733537487472,-3200.75,0.00012324,2]
[344537310,1733537487481,-536.93,0.00012324,2]
[344537311,1733537487491,-500.0,0.00012324,2]
[344537312,1733537487501,-1297.69,0.00012324,2]
[344537313,1733537487511,-500.0,0.00012324,2]
[344537314,1733537487521,-1217.46,0.00012324,2]
[344537315,1733537487530,-500.0,0.00012324,2]
[344537316,1733537487540,-1520.75,0.00012324,2]
[344537317,1733537487550,-500.0,0.00012324,2]
[344537318,1733537487559,-5161.49,0.00012324,2]
[344537319,1733537487569,-525.72,0.00012324,2]
[344537320,1733537487578,-500.0,0.00012324,2]
[344537321,1733537487588,-4752.83,0.00012324,2]
[344537322,1733537487599,-500.0,0.00012324,2]
[344537323,1733537487609,-579.7,0.00012324,2]
[344537324,1733537487619,-1013.93,0.00012324,2]
[344537325,1733537487629,-500.0,0.00012324,2]
[344537326,1733537487640,-500.0,0.00012324,2]
[344537327,1733537487652,-500.0,0.00012324,2]
[344537328,1733537487664,-980.16,0.00012324,2]
[344537329,1733537487675,-1478.17,0.00012324,2]
[344537330,1733537487685,-2253.52,0.00012324,2]
[344537331,1733537487695,-529.93,0.00012324,2]
[344537332,1733537487705,-589.51,0.00012324,2]
[344537333,1733537487715,-846.32,0.00012324,2]
[344537334,1733537487725,-634.76,0.00012324,2]
[344537335,1733537487735,-1592.53,0.00012324,2]
[344537336,1733537487745,-500.0,0.00012324,2]
[344537337,1733537487755,-500.0,0.00012324,2]
[344537338,1733537487765,-806.38,0.00012324,2]
[344537339,1733537487775,-500.0,0.00012324,2]
[344537340,1733537487785,-987.46,0.00012324,2]
[344537341,1733537487794,-500.0,0.00012324,2]
[344537342,1733537487803,-678.97,0.00012324,2]
[344537343,1733537487813,-527.38,0.00012324,2]
[344537344,1733537487823,-500.0,0.00012324,2]
[344537345,1733537487833,-845.26,0.00012324,2]
[344537346,1733537487843,-618.23,0.00012324,2]
[344537347,1733537487853,-718.78,0.00012324,2]
[344537348,1733537487862,-500.0,0.00012324,2]
[344537349,1733537487872,-500.0,0.00012324,2]
[344537350,1733537487882,-500.0,0.00012324,2]
[344537351,1733537487893,-500.0,0.00012324,2]
[344537352,1733537487903,-700.38,0.00012324,2]
[344537353,1733537487913,-2142.56,0.00012324,2]
[344537354,1733537487922,-500.0,0.00012324,2]
[344537355,1733537487932,-1006.68,0.00012324,2]
[344537356,1733537487942,-500.0,0.00012324,2]
[344537357,1733537487952,-500.0,0.00012324,2]
[344537358,1733537487962,-601.72,0.00012324,2]
[344537359,1733537487972,-810.93,0.00012324,2]
[344537360,1733537487982,-500.0,0.00012324,2]
[344537361,1733537487991,-500.0,0.00012324,2]
[344537362,1733537488001,-500.0,0.00012324,2]
[344537363,1733537488011,-500.0,0.00012324,2]
[344537364,1733537488021,-2711.3,0.00012324,2]
[344537365,1733537488031,-1456.41,0.00012324,2]
[344537366,1733537488041,-552.66,0.00012324,2]
[344537367,1733537488051,-1264.39,0.00012324,2]
[344537368,1733537488060,-742.7,0.00012324,2]
[344537369,1733537488070,-500.0,0.00012324,2]
[344537370,1733537488080,-500.0,0.00012324,2]
[344537371,1733537488090,-500.0,0.00012324,2]
[344537372,1733537488099,-500.0,0.00012324,2]
[344537373,1733537488109,-500.0,0.00012324,2]
[344537374,1733537488119,-1614.85,0.00012324,2]
[344537375,1733537488129,-500.0,0.00012325,2]
[344537376,1733537488139,-500.0,0.00012325,2]
[344537377,1733537488150,-935.29,0.00012325,2]
[344537378,1733537488160,-507.32,0.00012325,2]
[344537379,1733537488170,-537.37,0.00012325,2]
[344537380,1733537488179,-500.0,0.00012325,2]
[344537381,1733537488190,-500.0,0.00012325,2]
[344537382,1733537488200,-500.0,0.00012325,2]
[344537383,1733537488210,-500.0,0.00012325,2]
[344537384,1733537488220,-1039.25,0.00012325,2]
[344537385,1733537488230,-934.3,0.00012325,2]
[344537386,1733537488239,-706.31,0.00012325,2]
[344537387,1733537488250,-500.0,0.00012325,2]
[344537388,1733537488259,-1575.02,0.00012325,2]
[344537389,1733537488269,-974.48,0.00012325,2]
[344537390,1733537488279,-500.0,0.00012325,2]
[344537391,1733537488288,-594.53,0.00012325,2]
[344537392,1733537488298,-500.0,0.00012325,2]
[344537393,1733537488307,-500.0,0.00012325,2]
[344537394,1733537488317,-500.0,0.00012325,2]
[344537395,1733537488327,-500.0,0.00012325,2]
[344537396,1733537488337,-500.0,0.00012325,2]
[344537397,1733537488347,-500.0,0.00012325,2]
[344537398,1733537488359,-500.0,0.00012325,2]
[344537399,1733537488369,-500.0,0.00012325,2]
[344537400,1733537488379,-500.0,0.00012325,2]
[344537401,1733537488389,-500.0,0.00012325,2]
[344537402,1733537488401,-500.0,0.00012325,2]
[344537403,1733537488410,-648.49,0.00012325,2]
[344537404,1733537488419,-500.0,0.00012325,2]
[344537405,1733537488430,-500.0,0.00012325,2]
[344537406,1733537488440,-500.0,0.00012325,2]
[344537407,1733537488449,-500.0,0.00012325,2]
[344537408,1733537488458,-672.69,0.00012325,2]
[344537409,1733537488468,-500.0,0.00012325,2]
[344537410,1733537488478,-523.55,0.00012325,2]
[344537411,1733537488488,-500.0,0.00012325,2]
[344537412,1733537488498,-734.69,0.00012325,2]
[344537413,1733537488507,-500.0,0.00012325,2]
[344537414,1733537488518,-402.36912065,0.00012325,2]
[344537415,1733537488529,-500.0,0.00012325,2]
[344537416,1733537488539,-574.62,0.00012325,2]
[344537417,1733537488548,-507.11,0.00012325,2]
[344537418,1733537488559,-561.87,0.00012325,2]
[344537419,1733537488568,-630.75,0.00012325,2]
[344537420,1733537488578,-184.64186757,0.00012325,2]
[344537421,1733537488588,-958.27,0.00012325,2]
[344537422,1733537488598,-500.0,0.00012325,2]
[344537423,1733537488608,-1099.36,0.00012325,2]
[344537424,1733537488617,-500.0,0.00012325,2]
[344537425,1733537488627,-1285.82,0.00012325,2]
[344537426,1733537488637,-1464.66,0.00012325,2]
[344537427,1733537488649,-500.0,0.00012325,2]
[344537428,1733537488658,-500.0,0.00012325,2]
[344537429,1733537488671,-500.0,0.00012325,2]
[344537430,1733537488681,-500.0,0.00012325,2]
[344537431,1733537488691,-1119.59,0.00012325,2]
[344537432,1733537488701,-500.0,0.00012325,2]